bitfinex/quotes_ETHUSD_20250430
["timestamp","ask_amount","ask_price","bid_price","bid_amount"]
[1746041668345,5.62006864,1779.4,1779.0,12.1089062]
[1746041668505,12.0259091,1779.5,1779.0,12.10881184]
[1746041668701,6.40608171,1779.5,1779.0,12.10879242]
[1746041669045,5.61968171,1779.5,1779.1,0.7652]
[1746041669348,5.61968171,1779.5,1779.1,2.61469206]
[1746041669509,3.7864,1779.7,1779.1,2.61469206]
[1746041669510,5.61940696,1779.6,1779.2,6.17040524]
[1746041669837,5.61940696,1779.6,1779.4,0.7652]
[1746041671759,11.23890645,1779.6,1779.4,0.7652]
[1746041672058,5.61940696,1779.6,1779.4,0.7652]
[1746041672670,11.23895941,1779.6,1779.4,0.7652]
[1746041673153,5.61940696,1779.6,1779.4,0.7652]
[1746041674344,11.23890183,1779.6,1779.4,0.7652]
[1746041674505,5.61955605,1779.5,1779.4,0.7652]
[1746041676048,5.61940696,1779.6,1779.4,0.7652]
[1746041676757,0.7864,1779.9,1779.4,1.31662]
[1746041676919,6.36767682,1780.1,1779.5,0.55]
[1746041677126,5.61756908,1780.2,1779.8,5.61848274]
[1746041677328,6.36715348,1780.3,1779.9,5.506]
[1746041677556,5.61715348,1780.3,1779.9,11.12408448]
[1746041678282,5.61715348,1780.3,1780.0,0.55]
[1746041678486,5.61715348,1780.3,1780.0,6.16794383]
[1746041679157,5.61739095,1780.2,1780.0,0.55]
[1746041679854,5.61704351,1780.3,1780.0,0.55]
[1746041680060,5.61689043,1780.4,1780.0,0.55]
[1746041680260,5.61709015,1780.3,1780.0,0.55]
[1746041680746,5.61709015,1780.3,1780.0,6.16791255]
[1746041681744,5.61709015,1780.3,1780.0,0.55]
[1746041681937,11.23439103,1780.3,1780.0,0.55]
[1746041682140,5.61709015,1780.3,1780.0,0.55]
[1746041682464,5.61709015,1780.3,1780.0,2.47861699]
[1746041683356,5.61709015,1780.3,1780.0,8.09651417]
[1746041683760,5.61745872,1780.2,1780.0,2.47861699]
[1746041683964,5.61745872,1780.2,1780.0,0.55]
[1746041684162,5.61745191,1780.2,1779.9,11.44384449]
[1746041684485,5.61745191,1780.2,1779.9,17.06213421]
[1746041685410,5.61745191,1780.2,1779.9,11.44384449]
[1746041686205,11.23447283,1780.3,1779.9,17.06204154]
[1746041686399,11.23447283,1780.3,1779.9,19.38508364]
[1746041686608,5.61736923,1780.2,1779.9,19.38508364]
[1746041687707,5.61736923,1780.2,1779.9,11.44384449]
[1746041687909,5.61769935,1780.1,1779.9,10.68684449]
[1746041688283,5.61736923,1780.2,1779.9,16.30509658]
[1746041688284,5.61757325,1780.2,1779.9,16.30509658]
[1746041688611,5.61757325,1780.2,1779.9,10.68684449]
[1746041688982,5.61757325,1780.2,1779.9,16.30511879]
[1746041691333,5.61757325,1780.2,1779.9,10.68684449]
[1746041692489,5.61757325,1780.2,1779.9,16.30510802]
[1746041694423,5.61722048,1780.3,1780.0,5.61787381]
[1746041694632,5.61722048,1780.3,1779.9,16.30494004]
[1746041694994,5.61722048,1780.3,1779.9,21.92304536]
[1746041695740,5.61722048,1780.3,1779.9,16.30494004]
[1746041696222,5.61735619,1780.2,1779.9,16.30494004]
[1746041697429,5.61735619,1780.2,1779.9,10.68684449]
[1746041697807,5.61735619,1780.2,1779.9,16.30510301]
[1746041698121,11.87611378,1780.3,1779.9,16.30499625]
[1746041698287,6.25882093,1780.3,1779.9,16.30499625]
[1746041698626,5.61734696,1780.2,1779.9,16.30499625]
[1746041698940,12.03336997,1780.4,1780.0,1.3534]
[1746041699109,5.61706451,1780.3,1780.0,6.97129139]
[1746041699829,12.03335089,1780.4,1780.0,6.97118658]
[1746041699996,6.41637126,1780.4,1780.1,5.61763172]
[1746041700202,12.03331571,1780.4,1780.0,6.97118658]
[1746041700531,5.61713872,1780.3,1780.0,6.97118658]
[1746041701935,6.44073254,1780.5,1780.1,5.6175115]
[1746041702230,5.61653254,1780.5,1780.2,0.55]
[1746041702432,6.4398699,1780.8,1780.4,5.6164953]
[1746041702734,5.61580967,1780.7,1780.3,16.72161609]
[1746041702934,5.61580967,1780.7,1780.3,11.10472004]
[1746041703629,11.23181061,1780.7,1780.3,11.10472004]
[1746041703826,5.61580967,1780.7,1780.3,11.10472004]
[1746041704074,0.8242,1780.8,1780.5,5.61634002]
[1746041704354,6.36496869,1781.0,1780.6,6.93482583]
[1746041704550,5.61496869,1781.0,1780.7,4.735]
[1746041704959,5.61517136,1780.9,1780.7,4.735]
[1746041705141,5.61517136,1780.9,1780.6,1.318934]
[1746041705341,5.61576907,1780.7,1780.4,11.127421]
[1746041705745,11.23183909,1780.7,1780.4,5.5108]
[1746041705960,5.61576907,1780.7,1780.4,5.5108]
[1746041706549,5.61608693,1780.6,1780.4,5.5108]
[1746041706734,5.61639988,1780.5,1780.4,4.735]
[1746041706939,6.44549988,1780.5,1780.4,4.735]
[1746041708232,5.61734636,1780.2,1780.1,5.93784449]
[1746041708423,6.36734636,1780.2,1780.0,4.734]
[1746041708629,5.61661114,1780.5,1780.0,5.2074]
[1746041708936,5.61661114,1780.5,1780.1,0.8214]
[1746041709658,5.6160369,1780.7,1780.3,5.61690103]
[1746041709959,11.230754,1780.9,1780.6,0.55]
[1746041710141,5.61552835,1780.8,1780.6,0.55]
[1746041710643,5.61535897,1780.9,1780.6,0.55]
[1746041710828,5.61556503,1780.8,1780.5,0.8214]
[1746041711456,5.61608446,1780.6,1780.4,4.734]
[1746041711628,5.61639988,1780.5,1780.4,4.734]
[1746041712136,5.61780483,1780.1,1779.9,6.75554449]
[1746041712332,5.61780483,1780.1,1780.0,4.734]
[1746041713233,6.40170483,1780.1,1780.0,4.734]
[1746041713430,7.36175807,1780.1,1780.0,4.734]
[1746041714753,6.40170483,1780.1,1780.0,4.734]
[1746041715760,5.61780483,1780.1,1780.0,4.734]
[1746041719379,6.38972216,1780.3,1780.0,10.35197707]
[1746041719574,5.61688089,1780.4,1780.1,6.3999381]
[1746041719878,5.61596277,1780.7,1780.4,5.61668855]
[1746041720074,5.61596277,1780.7,1780.4,10.35168855]
[1746041720255,5.61564726,1780.8,1780.5,0.7823]
[1746041720763,11.23136408,1780.8,1780.5,0.7823]
[1746041720962,5.61564726,1780.8,1780.5,0.7823]
[1746041721348,5.61587489,1780.7,1780.5,0.7823]
[1746041721779,5.61608446,1780.6,1780.5,0.7823]
[1746041721946,5.61587489,1780.7,1780.5,0.7823]
[1746041723682,11.2319521,1780.7,1780.5,0.7823]
[1746041723843,5.61587489,1780.7,1780.5,0.7823]
[1746041724043,5.61587489,1780.7,1780.4,4.735]
[1746041724044,5.61600126,1780.7,1780.4,4.735]
[1746041724273,11.23207617,1780.7,1780.4,4.735]
[1746041724469,5.61600126,1780.7,1780.4,4.735]
[1746041724658,11.23206165,1780.7,1780.4,6.4942646]
[1746041725789,5.61600126,1780.7,1780.4,6.4942646]
[1746041728294,5.61610345,1780.6,1780.4,6.4942646]
[1746041729779,5.61600126,1780.7,1780.4,6.4942646]
[1746041730089,11.23137145,1780.8,1780.4,12.11088028]
[1746041730343,5.61562044,1780.8,1780.5,1.21108803]
[1746041730494,5.61562044,1780.8,1780.5,6.82738057]
[1746041731077,5.61562044,1780.8,1780.5,1.21108803]
[1746041733055,5.61562044,1780.8,1780.5,6.82738952]
[1746041733388,5.61494279,1781.0,1780.7,0.55]
[1746041733613,5.61468626,1781.1,1780.7,0.55]
[1746041733614,6.37774177,1781.2,1780.8,10.35525364]
[1746041733762,5.61382567,1781.4,1781.0,5.61466212]
[1746041733960,5.6130739,1781.6,1781.2,5.61409923]
[1746041734175,5.61302654,1781.6,1781.3,5.5384]
[1746041734374,9.36859403,1781.7,1781.3,11.15226856]
[1746041734574,11.22611893,1781.6,1781.3,5.5384]
[1746041734810,5.61356236,1781.4,1781.3,4.74]
[1746041735673,5.62844471,1781.4,1781.3,4.74]
[1746041735984,5.61356236,1781.4,1781.3,4.74]
[1746041738897,5.61345555,1781.5,1781.3,4.74]
[1746041739230,5.61356236,1781.4,1781.3,4.74]
[1746041741800,5.61345555,1781.5,1781.3,4.74]
[1746041743806,5.61309854,1781.6,1781.4,0.55]
[1746041743807,5.61310657,1781.6,1781.4,0.55]
[1746041743973,5.61266554,1781.7,1781.4,0.55]
[1746041744179,11.22551543,1781.7,1781.4,0.55]
[1746041744379,5.61266554,1781.7,1781.4,0.55]
[1746041744710,5.61266554,1781.7,1781.4,1.6957064]
[1746041745104,5.61297494,1781.6,1781.3,5.29337]
[1746041745815,5.61333557,1781.5,1781.3,5.29337]
[1746041747335,5.61325898,1781.5,1781.3,5.29337]
[1746041748336,5.61297634,1781.6,1781.3,5.29337]
[1746041748838,5.61329279,1781.5,1781.3,5.29337]
[1746041748995,5.61329279,1781.5,1781.4,0.529337]
[1746041749538,5.61297634,1781.6,1781.4,0.529337]
[1746041749730,11.22614664,1781.6,1781.4,0.529337]
[1746041750103,5.61297634,1781.6,1781.4,0.529337]
[1746041750540,11.2261433,1781.6,1781.4,0.529337]
[1746041750836,5.61324726,1781.5,1781.4,0.529337]
[1746041752304,5.61297634,1781.6,1781.4,1.079337]
[1746041752505,11.22615825,1781.6,1781.4,1.079337]
[1746041752839,5.61297634,1781.6,1781.4,1.079337]
[1746041753157,5.61324726,1781.5,1781.4,1.079337]
[1746041753655,5.61297634,1781.6,1781.4,1.079337]
[1746041755444,11.22613665,1781.6,1781.4,1.079337]
[1746041755620,5.61297634,1781.6,1781.4,1.079337]
[1746041756160,11.2261632,1781.6,1781.4,1.079337]
[1746041756454,5.61297634,1781.6,1781.4,1.079337]
[1746041756667,11.22618247,1781.6,1781.4,1.079337]
[1746041757339,5.61297634,1781.6,1781.4,1.079337]
[1746041757959,6.38938328,1782.0,1781.5,1.3105]
[1746041758124,3.31404432,1782.2,1781.7,5.61249575]
[1746041758125,5.6115978,1782.1,1781.7,5.61249575]
[1746041758431,5.61177407,1782.0,1781.8,6.04474957]
[1746041759061,4.53329942,1782.8,1782.1,0.7605]
[1746041759357,3.75579942,1782.8,1782.5,0.7605]
[1746041759570,3.75579942,1782.8,1782.6,4.723]
[1746041760064,9.36513407,1782.8,1782.6,4.723]
[1746041760252,3.75579942,1782.8,1782.6,4.723]
[1746041761398,3.75579942,1782.8,1782.6,5.83235838]
[1746041761599,9.36497195,1782.8,1782.6,4.723]
[1746041761900,3.75579942,1782.8,1782.6,4.723]
[1746041762803,3.75579942,1782.8,1782.6,10.33271052]
[1746041763098,3.75579942,1782.8,1782.6,4.723]
[1746041763969,11.21804305,1782.9,1782.6,4.723]
[1746041764186,11.21804305,1782.9,1782.6,5.83234178]
[1746041764484,6.38606692,1783.0,1782.6,5.83234178]
[1746041764688,5.60946878,1782.7,1782.6,4.723]
[1746041764993,5.60933929,1782.8,1782.6,4.723]
[1746041765197,5.60901824,1782.9,1782.6,4.723]
[1746041765398,5.60915912,1782.8,1782.6,4.723]
[1746041770184,5.60946878,1782.7,1782.6,4.723]
[1746041770386,5.60915912,1782.8,1782.6,5.27135]
[1746041771226,1.24617724,1783.2,1782.7,5.60942736]
[1746041771429,5.60878393,1783.0,1782.6,5.27135]
[1746041771746,5.60904887,1782.9,1782.6,5.27135]
[1746041771926,5.60925357,1782.8,1782.6,5.27135]
[1746041774223,6.41505571,1782.9,1782.6,5.27135]
[1746041774624,5.60924494,1782.8,1782.6,5.27135]
[1746041775021,5.60946878,1782.7,1782.6,4.723]
[1746041801460,5.60981862,1782.6,1782.5,4.724]
[1746041803622,5.60925278,1782.8,1782.5,10.33400926]
[1746041803856,0.776,1783.1,1782.6,6.92413837]
[1746041804042,0.776,1783.2,1782.7,6.30179021]
[1746041804244,5.60830603,1783.1,1782.9,0.7644]
[1746041804450,5.60830603,1783.1,1783.0,4.724]
[1746041805384,0.776,1783.5,1783.0,4.724]
[1746041805545,0.776,1783.5,1783.2,0.7644]
[1746041805546,5.60729001,1783.4,1783.2,0.7644]
[1746041805747,5.6072082,1783.5,1783.2,0.7644]
[1746041805957,6.7286059,1783.5,1783.2,6.37227479]
[1746041806160,6.7286059,1783.5,1783.2,0.7644]
[1746041806360,5.60676882,1783.6,1783.3,0.55]
[1746041807037,11.21415017,1783.5,1783.3,0.55]
[1746041807241,5.60695478,1783.5,1783.3,0.55]
[1746041807540,5.60726701,1783.4,1783.2,0.7644]
[1746041810232,9.69195295,1783.7,1783.0,5.5485]
[1746041810233,5.60790159,1783.2,1783.0,5.5485]
[1746041810632,5.60812044,1783.2,1783.0,5.5485]
[1746041810838,5.60777688,1783.3,1783.0,5.5485]
[1746041812571,3.30956002,1783.5,1783.1,0.55]
[1746041812572,5.60707626,1783.5,1783.1,0.55]
[1746041812873,5.60707626,1783.5,1783.1,7.32876382]
[1746041813073,11.21492466,1783.4,1783.1,1.7206977]
[1746041813284,5.60735732,1783.4,1783.1,1.7206977]
[1746041813472,5.60735732,1783.4,1783.1,7.32888856]
[1746041813669,11.21487392,1783.4,1783.1,1.7206977]
[1746041813983,5.60769017,1783.3,1783.1,1.7206977]
[1746041814179,5.60735732,1783.4,1783.1,1.7206977]
[1746041814883,5.60657359,1783.7,1783.3,0.55]
[1746041815049,5.60657359,1783.7,1783.4,4.719]
[1746041815453,11.21319613,1783.7,1783.4,4.719]
[1746041815774,5.60667047,1783.6,1783.4,4.719]
[1746041816281,5.60695262,1783.5,1783.4,4.719]
[1746041816473,6.36395262,1783.5,1783.4,4.719]
[1746041817056,5.60726701,1783.4,1783.3,4.719]
[1746041817670,6.36408961,1783.5,1783.3,4.719]
[1746041817989,5.60708961,1783.5,1783.3,4.719]
[1746041820595,6.36649754,1783.7,1783.3,10.32658056]
[1746041820810,5.60639754,1783.7,1783.4,6.92776115]
[1746041821014,11.21296097,1783.7,1783.4,3.04603417]
[1746041821164,5.60695262,1783.5,1783.3,4.719]
[1746041823319,11.21418577,1783.5,1783.3,4.719]
[1746041823521,5.60695262,1783.5,1783.3,4.719]
[1746041824093,5.60726701,1783.4,1783.3,4.719]
[1746041824882,6.42446701,1783.4,1783.3,4.719]
[1746041825083,5.60821042,1783.1,1782.9,24.47284449]
[1746041825382,5.60807623,1783.2,1783.0,4.719]
[1746041826923,11.21620997,1783.2,1783.0,4.719]
[1746041827124,5.60821042,1783.1,1783.0,4.719]
[1746041827894,6.40301042,1783.1,1783.0,4.719]
[1746041828544,5.60821042,1783.1,1783.0,4.719]
[1746041828743,6.40287623,1783.2,1783.0,4.719]
[1746041828744,5.60807623,1783.2,1783.0,4.719]
[1746041829053,5.60821042,1783.1,1783.0,4.719]
[1746041830049,5.60807623,1783.2,1783.0,4.719]
[1746041830238,11.21620175,1783.2,1783.0,4.719]
[1746041830440,5.60807623,1783.2,1783.0,4.719]
[1746041830747,11.21622346,1783.2,1783.0,4.719]
[1746041830952,5.60821042,1783.1,1783.0,4.719]
[1746041832661,6.43390517,1783.3,1783.0,4.719]
[1746041832862,5.60714358,1783.5,1783.1,5.60809108]
[1746041833016,3.8262,1783.6,1783.0,12.65270634]
[1746041833017,6.43274519,1783.7,1783.4,5.60716728]
[1746041833219,0.4240689,1783.9,1783.5,5.5272]
[1746041833220,6.43220018,1783.9,1783.5,5.5272]
[1746041833453,6.43219197,1783.9,1783.6,0.55272]
[1746041833755,12.03813985,1783.9,1783.5,11.13404041]
[1746041834143,5.60601119,1783.8,1783.5,5.5272]
[1746041834532,5.60634391,1783.7,1783.5,5.5272]
[1746041834920,5.60620787,1783.8,1783.5,5.5272]
[1746041835119,11.21249004,1783.8,1783.5,5.5272]
[1746041835427,5.60583139,1783.9,1783.6,6.15660214]
[1746041835620,5.60542942,1784.0,1783.7,6.41446926]
[1746041835857,11.21057762,1784.1,1783.7,6.41433644]
[1746041836065,5.60538123,1784.0,1783.8,0.55]
[1746041836284,5.60538123,1784.0,1783.9,4.718]
[1746041836807,5.60522546,1784.1,1783.9,4.718]
[1746041837359,5.60538116,1784.0,1783.9,4.718]
[1746041840197,5.60496721,1784.2,1783.9,10.85042701]
[1746041840369,5.60445984,1784.3,1784.0,1.3758]
[1746041841807,5.60445984,1784.3,1784.0,6.981105]
[1746041843314,11.20868843,1784.4,1784.0,6.981105]
[1746041843473,5.60428179,1784.4,1784.0,1.3758]
[1746041843675,11.2086438,1784.4,1784.0,6.98106118]
[1746041843873,11.2086438,1784.4,1784.1,0.69810612]
[1746041844171,5.60445036,1784.3,1784.1,0.69810612]
[1746041844365,5.60445036,1784.3,1784.0,1.3758]
[1746041844563,5.60445036,1784.3,1784.0,6.98116316]
[1746041844990,5.60445036,1784.3,1784.0,1.3758]
[1746041845371,5.60430202,1784.4,1784.0,6.98098922]
[1746041845589,5.60463589,1784.3,1784.0,1.3758]
[1746041845795,5.60463589,1784.3,1784.0,2.59841351]
[1746041846922,9.69221881,1784.6,1784.2,0.55]
[1746041846923,5.60400237,1784.5,1784.2,0.55]
[1746041847066,11.20808428,1784.5,1784.2,0.55]
[1746041847271,5.60400237,1784.5,1784.3,4.716]
[1746041847499,6.38272598,1784.6,1784.3,4.716]
[1746041847702,5.60362598,1784.6,1784.3,6.0297]
[1746041848492,5.60382476,1784.5,1784.3,6.0297]
[1746041849473,5.60412463,1784.4,1784.3,4.716]
[1746041849782,6.37022463,1784.4,1784.3,4.716]
[1746041849979,5.60412463,1784.4,1784.3,4.716]
[1746041853710,5.60382476,1784.5,1784.3,4.716]
[1746041854024,5.60291,1784.8,1784.4,6.15399011]
[1746041854315,5.60359888,1784.6,1784.4,2.2797298]
[1746041854519,5.60359888,1784.6,1784.4,0.55]
[1746041854715,5.60381059,1784.5,1784.3,5.539]
[1746041854890,5.60359888,1784.6,1784.3,5.539]
[1746041855621,11.20732519,1784.6,1784.3,5.539]
[1746041855911,5.60381214,1784.5,1784.4,0.5539]
[1746041858434,11.20736126,1784.6,1784.4,0.5539]
[1746041858611,11.20734444,1784.6,1784.4,0.5539]
[1746041858785,11.20736133,1784.6,1784.4,0.5539]
[1746041859322,5.60381059,1784.5,1784.4,0.5539]
[1746041862423,11.20736966,1784.6,1784.4,0.5539]
[1746041862580,11.2073542,1784.6,1784.4,0.5539]
[1746041863122,5.60381059,1784.5,1784.4,0.5539]
[1746041867629,5.60381059,1784.5,1784.3,5.539]
[1746041868235,5.50916763,1784.5,1784.3,5.539]
[1746041868420,5.60412463,1784.4,1784.3,4.716]
[1746041868616,5.50916763,1784.5,1784.3,4.716]
[1746041870929,6.39284412,1784.6,1784.3,5.78138445]
[1746041871093,5.60395809,1784.5,1784.3,5.78138445]
[1746041872334,5.60412463,1784.4,1784.3,5.78138445]
[1746041872726,5.60395809,1784.5,1784.3,5.78138445]
[1746041872917,5.60395809,1784.5,1784.3,4.716]
[1746041874130,11.99657462,1784.6,1784.3,4.716]
[1746041874294,5.60385324,1784.5,1784.3,4.716]
[1746041875026,6.3928491,1784.6,1784.3,4.716]
[1746041875348,5.60336142,1784.7,1784.3,11.14043277]
[1746041875549,5.60365447,1784.6,1784.3,12.81492992]
[1746041875848,5.60336142,1784.7,1784.3,12.81488822]
[1746041876131,5.60359389,1784.6,1784.4,0.55]
[1746041876731,11.20732986,1784.6,1784.4,0.55]
[1746041876899,5.60381059,1784.5,1784.4,0.55]
[1746041877098,5.60359389,1784.6,1784.4,0.55]
[1746041877735,11.20731547,1784.6,1784.4,0.55]
[1746041878304,11.20739311,1784.6,1784.4,0.55]
[1746041878510,5.60359389,1784.6,1784.4,0.55]
[1746041878842,11.2073923,1784.6,1784.4,0.55]
[1746041879604,5.60401445,1784.5,1784.3,4.716]
[1746041881029,5.60362996,1784.6,1784.3,4.716]
[1746041881216,5.60362996,1784.6,1784.3,5.74807411]
[1746041882241,11.20681405,1784.7,1784.4,1.3175]
[1746041882747,5.60334642,1784.7,1784.4,1.3175]
[1746041884249,6.39226616,1784.8,1784.4,1.3175]
[1746041884453,6.39226616,1784.8,1784.4,6.92147215]
[1746041884614,6.73398903,1785.0,1784.4,6.92147215]
[1746041884615,9.3794907,1785.0,1784.6,6.15339387]
[1746041884820,5.6023907,1785.0,1784.7,11.09197928]
[1746041885155,6.37916893,1785.1,1784.7,11.09182004]
[1746041885751,11.98134591,1785.1,1784.7,11.09182004]
[1746041885952,11.98134591,1785.1,1784.8,1.109182]
[1746041886131,11.98134591,1785.1,1784.7,4.712]
[1746041886132,5.60226727,1785.0,1784.7,4.712]
[1746041886655,5.60226727,1785.0,1784.7,10.31516853]
[1746041887155,6.379221,1785.1,1784.7,10.31516853]
[1746041887329,11.98138046,1785.1,1784.7,10.31516853]
[1746041887529,5.60227339,1785.0,1784.8,1.03151685]
[1746041888453,5.60255476,1784.9,1784.8,1.03151685]
[1746041888621,5.60227339,1785.0,1784.7,4.712]
[1746041889053,5.60227339,1785.0,1784.7,10.31517833]
[1746041889564,5.60255697,1784.9,1784.7,4.712]
[1746041890067,5.60286866,1784.8,1784.7,4.712]
[1746041890361,6.35656866,1784.8,1784.7,4.712]
[1746041892114,9.66612868,1784.8,1784.7,4.712]
[1746041892359,11.19299725,1784.8,1784.7,4.712]
[1746041894159,11.19299725,1784.8,1784.3,4.712]
[1746041894160,5.60412463,1784.4,1784.3,4.712]
[1746041904944,5.61900698,1784.4,1784.3,4.712]
[1746041905773,5.60412463,1784.4,1784.3,4.712]
[1746041908271,7.13662415,1784.4,1784.3,4.712]
[1746041910576,7.12999984,1784.4,1784.3,4.712]
[1746041914477,5.60519055,1784.1,1783.9,0.55]
[1746041914675,5.60519055,1784.1,1784.0,4.711]
[1746041916071,5.60569538,1783.9,1783.6,18.521]
[1746041916246,6.36849538,1783.9,1783.8,4.711]
[1746041916749,9.6780554,1783.9,1783.8,4.711]
[1746041918945,5.60695262,1783.5,1783.4,4.711]
[1746041921584,5.62183497,1783.5,1783.4,4.711]
[1746041921762,5.60695262,1783.5,1783.4,4.711]
[1746041922291,5.62183497,1783.5,1783.4,4.711]
[1746041922449,5.60695262,1783.5,1783.4,4.711]
[1746041922649,5.62183497,1783.5,1783.4,4.711]
[1746041922852,6.38415262,1783.5,1783.4,4.711]
[1746041923084,5.60695262,1783.5,1783.4,4.711]
[1746041924882,5.60789591,1783.2,1783.1,5.5406]
[1746041925082,5.60789591,1783.2,1783.1,4.712]
[1746041928066,5.60758145,1783.3,1783.2,0.7608]
[1746041928494,5.60789591,1783.2,1783.1,4.712]
[1746041933315,8.93233828,1783.2,1783.1,4.712]
[1746041933456,5.60915205,1782.9,1782.8,4.713]
[1746041936294,5.60837844,1783.1,1782.8,4.713]
[1746041936463,5.60837844,1783.1,1782.9,0.7722]
[1746041938676,5.60807361,1783.2,1782.9,0.7722]
[1746041939800,5.6083199,1783.1,1782.9,0.7722]
[1746041939996,5.6083199,1783.1,1782.8,5.263]
[1746041940201,5.60852495,1783.0,1782.9,0.55]
[1746041941699,5.60852495,1783.0,1782.8,5.80194656]
[1746041941908,5.60852495,1783.0,1782.8,4.713]
[1746041942708,5.60841658,1783.1,1782.8,4.713]
[1746041943210,5.60863154,1783.0,1782.8,4.713]
[1746041944914,5.60883953,1782.9,1782.8,4.713]
[1746041950513,5.60863154,1783.0,1782.8,4.713]
[1746041950726,11.21739597,1783.0,1782.8,4.713]
[1746041950938,5.60883953,1782.9,1782.8,4.713]
[1746041952996,5.59631839,1782.9,1782.8,4.713]
[1746041955724,0.7877,1783.1,1782.8,4.713]
[1746041955964,5.60830199,1783.1,1782.9,0.4713]
[1746041956238,5.60830199,1783.1,1782.8,11.09344713]
[1746041956407,5.60830199,1783.1,1782.8,5.4844]
[1746041956604,11.21675225,1783.1,1782.8,5.4844]
[1746041956805,5.60860884,1783.0,1782.8,5.4844]
[1746041957006,11.21740383,1783.0,1782.8,5.4844]
[1746041957610,5.60860884,1783.0,1782.8,5.4844]
[1746041958110,5.60883953,1782.9,1782.8,4.713]
[1746041959540,5.60915413,1782.8,1782.7,0.0172005]
[1746041959748,6.41625413,1782.8,1782.7,0.0172005]
[1746041965648,9.43113648,1782.8,1782.7,0.0172005]
[1746041965835,5.61072771,1782.3,1782.2,23.243]
[1746041966040,6.80878618,1782.3,1782.2,4.711]
[1746041966244,5.61072771,1782.3,1782.2,4.711]
[1746041971252,0.01488235,1782.3,1781.7,0.8009]
[1746041971457,5.61152858,1782.1,1781.8,4.709]
[1746041972078,5.61120971,1782.2,1781.8,4.709]
[1746041972274,11.22248536,1782.2,1781.9,0.7513]
[1746041973078,5.61141941,1782.1,1781.9,0.7513]
[1746041974479,5.61167227,1782.0,1781.9,0.7513]
[1746041975294,5.61141941,1782.1,1781.9,0.7513]
[1746041975476,11.22309151,1782.1,1781.9,0.7513]
[1746041975677,5.61167227,1782.0,1781.9,0.7513]
[1746041976776,5.61136576,1782.1,1781.9,0.7513]
[1746041976948,5.61167227,1782.0,1781.9,0.7513]
[1746041977349,5.61136576,1782.1,1781.9,0.7513]
[1746041977782,5.61167227,1782.0,1781.9,0.7513]
[1746041979480,5.6119872,1781.9,1781.8,4.709]
[1746041981286,5.6119872,1781.9,1781.8,4.709]
[1746041991198,6.4329872,1781.9,1781.8,4.709]
[1746041999177,6.73397607,1782.0,1781.8,4.709]
[1746041999407,1.1223038,1782.0,1781.8,4.709]
[1746041999611,5.61144916,1782.1,1781.8,10.32116894]
[1746041999777,11.22303577,1782.1,1781.8,4.709]
[1746041999977,5.61144916,1782.1,1781.8,4.709]
[1746042001110,5.6117683,1782.0,1781.8,4.709]
[1746042001320,5.61144916,1782.1,1781.8,4.709]
[1746042001612,5.61188736,1782.0,1781.8,4.709]
[1746042002506,5.6119872,1781.9,1781.8,4.709]
[1746042002713,5.61188736,1782.0,1781.8,4.709]
[1746042003489,6.7338213,1782.1,1781.8,4.709]
[1746042003689,5.6115552,1782.1,1781.8,4.709]
[1746042003912,5.61168527,1782.0,1781.8,4.709]
[1746042004888,5.6119872,1781.9,1781.8,4.709]
[1746042005088,5.61168527,1782.0,1781.8,4.709]
[1746042005425,5.6119872,1781.9,1781.8,4.709]
[1746042005604,6.73435445,1781.9,1781.8,4.709]
[1746042006015,1.12236725,1781.9,1781.8,4.709]
[1746042006210,5.61168527,1782.0,1781.8,4.709]
[1746042006586,5.61149637,1782.1,1781.8,5.4598]
[1746042006796,5.61149637,1782.1,1781.8,11.07206764]
[1746042006993,5.6119872,1781.9,1781.8,5.4598]
[1746042007302,5.61181715,1782.0,1781.8,5.4598]
[1746042007820,5.61153405,1782.1,1781.8,5.4598]
[1746042008325,5.61169298,1782.0,1781.8,5.4598]
[1746042008620,5.61153405,1782.1,1781.8,6.00578]
[1746042009007,11.22313363,1782.1,1781.8,6.00578]
[1746042009318,5.61175207,1782.0,1781.8,6.00578]
[1746042009622,11.22371501,1782.0,1781.8,5.4598]
[1746042009926,5.6119872,1781.9,1781.8,5.4598]
[1746042011426,5.6119872,1781.9,1781.8,4.709]
[1746042012806,5.6119872,1781.9,1781.4,0.7882]
[1746042012807,5.61324726,1781.5,1781.4,5.4962]
[1746042013216,5.61324726,1781.5,1781.4,4.708]
[1746042015313,6.73587924,1781.5,1781.4,4.708]
[1746042015935,7.54717924,1781.5,1781.4,4.708]
[1746042016251,5.61406063,1781.3,1781.1,5.5135]
[1746042016543,5.61405669,1781.3,1781.1,5.5135]
[1746042016698,5.61374028,1781.4,1781.1,5.5135]
[1746042016899,11.22754903,1781.4,1781.1,5.5135]
[1746042017099,5.61374028,1781.4,1781.1,5.5135]
[1746042017339,6.42465966,1781.5,1781.1,5.5135]
[1746042017649,5.61335966,1781.5,1781.1,12.24061348]
[1746042018227,8.61288125,1781.7,1781.4,0.7882]
[1746042018439,5.61312643,1781.6,1781.4,0.7882]
[1746042018641,5.61312643,1781.6,1781.2,1.3186]
[1746042018846,5.61349186,1781.5,1781.2,1.3186]
[1746042019006,5.61367245,1781.4,1781.2,1.3186]
[1746042019202,5.61367245,1781.4,1781.2,0.7686]
[1746042019636,5.61349186,1781.5,1781.2,0.7686]
[1746042019850,5.61311436,1781.6,1781.2,0.7686]
[1746042020031,9.04174128,1781.7,1781.3,0.55]
[1746042020236,9.04174128,1781.7,1781.4,0.8168]
[1746042020410,8.61276625,1781.7,1781.4,0.8168]
[1746042021910,14.22563449,1781.7,1781.4,0.8168]
[1746042022121,5.61236229,1781.8,1781.4,0.8168]
[1746042022450,5.61236229,1781.8,1781.4,7.12821336]
[1746042022954,5.61262352,1781.7,1781.4,7.12821336]
[1746042023305,5.61236229,1781.8,1781.4,1.51485809]
[1746042023599,11.22492557,1781.8,1781.4,7.12823287]
[1746042024144,6.03086318,1781.8,1781.5,5.61322522]
[1746042024431,11.64342442,1781.8,1781.4,7.12821253]
[1746042024603,6.03086318,1781.8,1781.4,7.12821253]
[1746042025131,6.43154861,1782.1,1781.7,5.61244963]
[1746042025324,5.61120759,1782.2,1781.7,5.61261716]